Cogmind - Beta 15 @@@ ROGUE MODE // 2025.07.06 @ 00:53:43 Player: iromakkem Result: Destroyed by G-34 Mercenary with Small Laser Performance ------------- Evolutions (0) 0 Regions Visited (1) 200 Robots Destroyed (18) 90 Value Destroyed (327) 327 Prototype IDs (0) 0 Alien Tech Used (0) 0 Bonus (0) 0 TOTAL SCORE: 617 Bonus ------- None Cogmind --------- Core Integrity 0/250 Matter 300/300 Energy 100/100 System Corruption 0% Temperature Cool (6) Movement Core (100) Ox1 Location -10/Materials Parts ------- > --- POWER (1) -------- (None) > --- PROPULSION (2) --- (None) > --- UTILITY (2) ------ Small Storage Unit Weapon Shielding > --- WEAPON (2) ------- (None) > --- INVENTORY (8) ---- Light Treads Light Treads Improved Terrain Scanner Shield Generator Peak State ------------ > --- POWER ------------ Light Ion Engine > --- PROPULSION ------- Aluminum Leg Aluminum Leg > --- UTILITY ---------- Small Storage Unit Improved Terrain Scanner > --- WEAPON ----------- Medium Laser Medium Laser > --- INVENTORY -------- Ion Engine Light Treads Light Treads Wheel Wheel EM Pulse Gun [Rating: 9] Favorites ----------- Power Light Ion Engine Engine Light Ion Engine Propulsion Aluminum Leg Leg Aluminum Leg Utility Small Storage Unit Device Improved Terrain Scanner Storage Small Storage Unit Protection Weapon Shielding Weapon Medium Laser Energy Gun Medium Laser Build | -11 -10 ------- Run | Yrd Mat Slots Evolved . | . . Power . | . . Propulsion . | . . Utility . | . . Weapon . | . . Parts Attached 11 | 7 4 Power 2 | 1 1 Engine 2 | 1 1 Core . | . . Reactor . | . . Propulsion 3 | 2 1 Treads . | . . Leg 3 | 2 1 Wheel . | . . Hover . | . . Flight . | . . Utility 3 | 2 1 Device 1 | 1 . Storage 1 | 1 . Processor . | . . Hackware . | . . Protection 1 | . 1 Artifact . | . . Weapon 3 | 2 1 Energy Gun 3 | 2 1 Energy Cannon . | . . Ballistic Gun . | . . Ballistic Cannon . | . . Launcher . | . . Special Weapon . | . . Impact Weapon . | . . Slashing Weapon . | . . Piercing Weapon . | . . Special Melee Weapon . | . . Unidentified Prototypes . | . . Parts Lost 9 | . 9 Power 2 | . 2 Propulsion 3 | . 3 Utility 1 | . 1 Weapon 3 | . 3 Highest Loss Streak 9 | . 9 To Critical Strikes . | . . Average Backups 5 | 4 6 Power . | . . Propulsion 3 | 2 3 Utility . | . 1 Weapon . | . . Tool/Special . | . . Unused Backups 6 | . 6 Power . | . . Propulsion 5 | . 5 Utility 1 | . 1 Weapon . | . . Tool/Special . | . . Average Slot Usage (%) 93 | . 93 Engine 13 | . 13 Leg 24 | . 24 Device 12 | . 12 Storage 14 | . 14 Protection 1 | . 1 Energy Gun 25 | . 25 Peak Build Rating 9 | 9 9 Average Rating 7 | 6 8 On Entrance 4 | . 9 Naked Turns . | . . Heaviest Build 15 | 13 15 Greatest Support 20 | 20 20 Greatest Overweight (x) 4 | 3 4 Average Overweight (x) . | . . Largest Inventory Capacity 8 | 8 8 Average Capacity 7 | 7 8 Most Carried 8 | 7 8 Average Carried 5 | 4 6 Final Capacity 8 | 8 8 Final Carried 7 | 7 4 Class Distribution -------------------- 100% | Mutant Dominant Class ---------------- Mutant | -10/Materials Resources | -11 -10 ----------- Run | Yrd Mat Matter Collected 270 | 125 145 Remotely . | . . Salvage Created 503 | 126 377 Parts 24 | 9 15 Haulers Intercepted . | . . Recyclers Shooed 2 | . 2 Parts Field Recycled . | . . Retrieved Matter . | . . Parts Self-Destructed . | . . Prevented . | . . Kills | -11 -10 ------- Run | Yrd Mat Combat Hostiles Destroyed 12 | . 12 Guns 10 | . 10 AOE 2 | . 2 Classes Destroyed 5 | 2 3 Tunneler 4 | 3 1 Recycler 1 | 1 . Watcher 1 | . 1 Swarmer 6 | . 6 Grunt 6 | . 6 Best Kill Streak 6 | 2 6 Combat Bots Only 6 | . 6 Max Kills in Single Turn 2 | 1 2 Gunslinging . | . . Exploded 1 | . 1 Melee . | . . Uniques/NPCs Destroyed . | . . Combat | -11 -10 -------- Run | Yrd Mat Hostile Shots Fired 117 | . 117 Missed 34 | . 34 Hits 83 | . 83 Projectile 83 | . 83 Damage Taken 886 | . 886 Core 258 | . 258 Absorbed by Shields . | . . Redirected to Shielding 9 | . 9 Core Remaining (%) 100 | 100 . Volleys Fired 61 | 8 53 Largest 2 | 2 2 Hottest 100 | 100 100 Shots Fired 93 | 16 77 Gun 93 | 16 77 Cannon . | . . Launcher . | . . Special . | . . Kinetic . | . . Thermal 79 | 16 63 Explosive . | . . Electromagnetic 14 | . 14 Robot Hit Streak 10 | 6 10 Robot Miss Streak 7 | 1 7 Penetration Max . | . . Secondary Targets . | . . Shots Hit Robots 63 | 14 49 Core Hits 30 | 5 25 Critical Kills . | . . Critical Parts Destroyed . | . . Critical Strikes 9 | 1 8 Burn 8 | 1 7 Corrupt 1 | . 1 Melee Attacks . | . . Impact . | . . Slashing . | . . Piercing . | . . Sneak Attacks . | . . Combat Hostiles . | . . Follow-up Attacks . | . . Damage Inflicted 1060 | 175 885 Guns 909 | 175 734 Cannons . | . . Explosions 142 | . 142 Melee . | . . Ramming 9 | . 9 Kinetic . | . . Thermal 908 | 175 733 Explosive . | . . Electromagnetic 143 | . 143 Impact . | . . Slashing . | . . Piercing . | . . Highest Corruption . | . . Average Corruption . | . . Corruption Purged . | . . Corruption Blocked . | . . Overload Shots . | . . Overflow Damage . | . . Projectiles . | . . Explosions . | . . Melee . | . . Knockbacks . | . . Impact . | . . Kinetic . | . . Secondary . | . . Self-Inflicted Damage 29 | . 29 Shots 1 | . 1 Rammed 2 | . 2 Targets Rammed 7 | 1 6 Kicked 5 | 1 4 Crushed . | . . Highest Temperature 320 | 121 320 Average Temperature 112 | 56 124 Received Heat Transfer 354 | . 354 Effects 5 | . 5 Shutdowns 1 | . 1 Interference 4 | . 4 Siege Activations . | . . Martial Activations . | . . Shielding Activations . | . . Robots Disrupted . | . . Combat Hostiles . | . . Robots Corrupted . | . . Combat Hostiles . | . . Parts Fried . | . . Impact Corruptions . | . . Robots Melted . | . . Combat Hostiles . | . . Parts Melted 5 | . 5 Heat Transferred 2999 | 592 2407 Parts Sabotaged . | . . Parts Stolen . | . . Parts Stripped . | . . Power Chain Reactions 2 | . 2 Alert | -11 -10 ------- Run | Yrd Mat Maximum Alert Level 1 | . 1 Low Security (%) 99 | 100 99 Level 1 . | . . Level 2 . | . . Level 3 . | . . Level 4 . | . . Level 5 . | . . High Security . | . . Max Security . | . . Peak Influence 202 | 10 202 Initial . | . . Average 54 | 2 70 Influence Increases 382 | 20 362 Destroy 0b10 Robot/C 240 | . 240 Destroy 0b10 Robot/NC 30 | 20 10 Destroy Leader 52 | . 52 Destroy Structure 15 | . 15 Lose Combat Pursuer 45 | . 45 Influence Decreases 240 | 20 220 Time Decay 150 | 20 130 Lost Part 90 | . 90 Squads Dispatched 3 | . 3 Investigation 1 | . 1 Extermination . | . . Reinforcement 2 | . 2 Assault . | . . Garrison . | . . Intercept . | . . Searches Triggered . | . . Construction Impeded . | . . Haulers Reinforced . | . . Active Scanning Responses . | . . Cargo Convoy Interrupts . | . . Stealth | -11 -10 --------- Run | Yrd Mat Distress Signals 3 | . 3 Communications Jammed . | . . Distress Signals . | . . Times Spotted 24 | . 24 Peak Tracking Total 5 | . 5 Tactical Retreats 2 | . 2 Traps | -11 -10 ------- Run | Yrd Mat Traps Triggered . | . . Indirectly . | . . Trap Hack Attempts . | . . Triggered . | . . Disarmed . | . . Reprogrammed . | . . Reused . | . . Traps Extracted . | . . Installed . | . . Triggered . | . . Machines | -11 -10 ---------- Run | Yrd Mat Machines Disabled . | . . Max in Single Turn . | . . Machines Repaired . | . . Machines Dismantled . | . . Machines Sabotaged . | . . Overloaded Fab Kills . | . . Hacking | -11 -10 --------- Run | Yrd Mat Machines Accessed 1 | . 1 Terminals 1 | . 1 Fabricators . | . . Repair Stations . | . . Recycling Units . | . . Scanalyzers . | . . Garrison Access . | . . Total Hacks 3 | . 3 Successful . | . . Failed 3 | . 3 Catastrophic . | . . Database Lockouts . | . . Manual . | . . Terminals 3 | . 3 Fabricators . | . . Repair Stations . | . . Recycling Units . | . . Scanalyzers . | . . Garrison Access . | . . Terminal Hacks . | . . Fabricator Hacks . | . . Repair Station Hacks . | . . Recycling Unit Hacks . | . . Scanalyzer . | . . Garrison Access Hacks . | . . Unauthorized Hacks . | . . Terminals . | . . Fabricators . | . . Repair Stations . | . . Recycling Units . | . . Scanalyzers . | . . Garrison Access . | . . Data Cores Recovered . | . . Used . | . . Hacking Detections 1 | . 1 Full Trace Events 1 | . 1 Feedback Events . | . . Feedback Blocked . | . . Robot Schematics Acquired . | . . Robots Built . | . . Authchips . | . . Time . | . . Total Robot Build Rating . | . . Part Schematics Acquired . | . . Parts Built . | . . Authchips . | . . Time . | . . Total Part Build Rating . | . . Parts Repaired . | . . Time . | . . Parts Recycled . | . . Recycled Matter . | . . Retrieved Matter . | . . Retrieved Components . | . . Parts Scanalyzed . | . . Part Schematics Acquired . | . . Parts Damaged . | . . Bothacking | -11 -10 ------------ Run | Yrd Mat Used RIF Installer . | . . Robots Hacked . | . . Non-combat . | . . Combat . | . . Robot Hacks Applied . | . . Relay Couplers Released . | . . Fabnet Peak Effective % . | . . Robots Rewired . | . . Allies Hacked . | . . Hacks Repelled . | . . Allies | -11 -10 -------- Run | Yrd Mat Total Allies . | . . Largest Group . | . . Highest-Rated Group . | . . Highest-Rated Ally . | . . Total Orders . | . . Ally Attacks . | . . Total Damage . | . . Kills . | . . Allies Corrupted . | . . Allies Melted . | . . Intel | -11 -10 ------- Run | Yrd Mat Active Infowar (turns) 294 | 45 249 Terrain 294 | 45 249 Robot Analysis Total . | . . Derelict Logs Recovered . | . . Drone Launches . | . . Drone Recoveries . | . . Exploration | -11 -10 ------------- Run | Yrd Mat Turns Passed 424 | 101 323 Spaces Moved 174 | 47 127 Core 25 | 9 16 Treads . | . . Legs 149 | 38 111 Wheels . | . . Hover . | . . Flight . | . . Fastest Speed 50 | 50 100 Average Speed 128 | 124 130 Slowest Speed 250 | 200 250 Overloaded Moves . | . . Propulsion Burnouts . | . . Robots Hopped . | . . Potential Cave-ins . | . . Cave-ins Triggered . | . . Exploration Rate (%) 19 | 4 35 Regions Visited 1 Branch Regions . Pre-discovered Areas . | . . Known Exits Taken . | . . Unknown Exits Taken 1 | 1 . Scrap Searched . | . . Spaces Dug . | . . Terrain Destroyed 14 | . 14 Melee . | . . Projectile . | . . AOE 14 | . 14 Terrain Rammed . | . . Walls Destroyed . | . . Machines Disabled . | . . Actions | -11 -10 --------- Run | Yrd Mat Total 277 | 70 207 Wait 9 | . 9 Move 174 | 47 127 Hop . | . . Pick Up 12 | 8 4 Fast Attach 6 | 6 . Attach 5 | 1 4 Detach . | . . Swap 1 | . 1 Drop 3 | . 3 Fire 61 | 8 53 Melee . | . . Ram 2 | . 2 Kick 4 | . 4 Crush . | . . Escape Stasis . | . . Rewire . | . . Trap . | . . Miscellaneous . | . . Route ------- -11/Scrapyard -10/Materials (discovered 2 exits: [*Mat x2]) History --------- Turn | Location | Event 22 | -11/Scrapyard | Discovered new exit (range 15) 102 | -11/Scrapyard | Entered Materials 238 | -10/Materials | Discovered new exit (range 5) 312 | -10/Materials | Build established: Mutant 391 | -10/Materials | Core integrity fell below 50% 421 | -10/Materials | Core integrity fell below 20% 421 | -10/Materials | Discovered new exit (range 15) 425 | -10/Materials | Destroyed by G-34 Mercenary with Small Laser Last Messages --------------- 00373_ U-05 Engineer builds a Wall. 00373_ S-10 Pest destroyed. 00374_ U-05 Engineer builds a Wall. 00376_ EM Pulse Gun destroyed. 00378_ U-05 Engineer lays Concrete. 00380_ U-05 Engineer builds a Wall. 00380_ Imp. Terrain Scanner destroyed. 00384_ Aluminum Leg destroyed. 00385_ U-05 Engineer lays Concrete. 00386_ Aluminum Leg destroyed. 00387_ U-05 Engineer builds a Wall. 00391_ U-05 Engineer lays Concrete. 00410_ Acquired Shield Generator. 00413_ G-34 Mercenary suffers critical hit (Burn). 00414_ Med. Laser destroyed. 00417_ Slammed into G-34 Mercenary. 00419_ Ion Engine destroyed. 00419_ Slammed into G-34 Mercenary. 00421_ EXIT=FOUND Map ----- +----------------------------------------------------+ | | | | | ?????????????????????????????????????????????????? | | ?????????????????????????????????????????????????? | | ?????????????????????????????????????????????????? | | ?????????????????????????????????????????????????? | | ?????????????????????????????????????????????????? | | ?????????????????????????????????????????????????? | | ?????????????????????????????????????????????????? | | ?????????????????????????????????????????????????? | | ?????????????????????????????????????????????????? | | ?????????????????????????????????????????????????? | | ????????????????????????#####????????????????????? | | ???????????????????????? #????????????????????? | | ???????????????????????? < #????????????????????? | | ????????????????????????# #????????????????????? | | ????????????????????????# +????????????????????? | | ????????????????????????# #????????????????????? | | ????????????????????????# #????????????????????? | | ????????????????????????# #????????????????????? | | ????????????????????????# #????????????????????? | | ????????????????????????# #????????????????????? | | ????????????????????????# #??#????????+????????? | | ????????????????????????+ #??????#???# ##??????? | | ????????????????????????# #####??????# ??????? | | ????????????????????????#@ !!#??????# ?? ???? | | ????????????????????? ??# !!#?????## ??????? | | ???????????????????? ???# !!##?????# #???+??? | | ?????????????????????##?# !#??????# #??????? | | ?????????????############ g !!#??????# #??????? | | ????????????# g%%g!#??????# #??????? | | ????????????# g #####??#???# #??" ??? | | ?????????????? T """ #??????????# #??????? | | ?????????????? """ ####???????# # ?????? | | ?????????????? """ ######"""""# ######## | | ????????????? """ %% =%* | | ????????????? % %= % < | | ????????????? % % * | | ?????????????! """ ###########"#+#### #### | | ????????????? """ ####????### % ##=#??# | | ?????????????? """ ??????????# "" ## #??? | | ?????????????? """ ???? ??? ?# "T ## #??? | | ??????????????? ??????????# "" ##!##?? | | ???????????????? ???? ? ?"??????# ##=##?? | | ???????????????????? ??????"???# ## #??? | | ???????????????????? ????? ????# ! ## #??? | | ??????????????????"?"Y"# #?????????# ## #??? | | ????????????????????"""# ??????????# """ ## #??? | | ???????????????????????# ??????????# """ ##+#### | | ???????????????????????# #?? ??????# """ # # | +----------------------------------------------------+ Best States ------------- Heat Dissipation 25 Energy Generation 10 Energy Capacity 250 Matter Stores 300 Matter Capacity 300 Sight Range 16 Terrain Scan Range 16 Terrain Scan Density 10 Weapon Shielding 33 Evasion (%) 55 Item Schematics ----------------- None Robot Schematics ------------------ None Fabricated ------------ Nothing Repaired ---------- Nothing Alien Tech Used ----------------- None Achievements -------------- None Challenges ------------ None Game ------ Seed BlanketGreatLegs Manual? 0 Play Time 00:05:40 Cumulative 41.2 hours Start 2025.07.06 @ 00:48:04 End 2025.07.06 @ 00:53:43 Sessions 1 Manual Loads 0 Difficulty Rogue Special Mode None Game No. 55 Rogue 55 Adventurer 0 Explorer 0 Win Type - Total 0 Types 0/0/0/0/0/0/0/0/0/0 Lore% 12 Gallery% 21 Achievement% 23 Wizard Run 0 Options --------- Layout 1 ASCII 0 Keyboard 0 Movement Numpad Keybinds 0 Fullscreen 1 Font 16/SmallcapsGlow Map View 25x20 Zoom Use 97% Tactical HUD 1 Map Filters NONE Filters NONE Steam SD RUN: b87b1ffb-453c-430d-88ab-601d462fcec5